{"text_format":"1","workbook":"xlsx","n_sheets":7,"sheets":["Tietoa","KOMMUNIKOINNIN PERUSTAN TAIDOT","TUNNETAIDOT","MUUT TAIDOT","Data","Yhteenveto","Ryhmittely"],"not_rendered":{"charts":21,"images":6,"macros":1,"external_links":0,"defined_names":0,"comments":0,"pivot_tables":1},"unopened":[],"bounds":{"document_bytes":16777216,"sheet_cells":100000,"rows_first":2000,"rows_last":500,"rows_between":2000,"halvings":0,"cell_chars":16384,"cell_head_chars":4096},"cells_cut":0,"cells_raw":0,"read":"whole","date_system":"1900"}

{"sheet":"Tietoa","index":0,"n_rows":16,"n_cols":3,"rows_kept":16,"cut":false,"hidden":false,"merged":[[14,4,14,12],[15,4,15,12],[9,0,10,0],[9,13,10,13],[3,2,3,12],[4,0,4,15],[7,0,8,0],[7,2,7,12],[13,4,13,12]]}
[null,null,"MUUTOSMITTARI"]
[null,null,"kommunikoinnin perustan taidoissa tapahtuneiden muutosten arviointiin"]
[]
[]
[]
[]
[null,null,"Mittarin käyttö"]
[null,null,"Mittari jakautuu kolmeen osioon, jotka ovat omilla välilehdillään: \n\nI Kommunikoinnin perustan taidot,  II Tunnetaidot ja III Muut taidot.\n\nJokaisessa taitoalueessa on esimerkkejä asiakkaasi tai läheisesi olemuksessa, käyttäytymisessä, viestinnässä \ntai toiminnassa tapahtuneista muutoksista. Voit arvioida muutoksen suuruutta klikkaamalla sopivaa asteikon \nvaihtoehtoa. Lisäksi voit  kirjoittaa havaintojasi muutoslausekkeiden oikealla puolella olevaan tekstitilaan.\n\nYhteenveto-välilehdellä näet kaikki vastaukset visuaalisesti esitettyinä. Vastaukset mittarin välilehdillä I, II ja III \npäivittyvät automaattisesti Yhteenvetoon. Ryhmittely-välilehdellä voit tarkastella kaikkia muutoksia samassa listassa.\n\nVoit käyttää mittaria joko yksin tai yhdessä keskustellen läheisesi hyvin tuntevien ihmisten kanssa. Jos täytätte \nmittarilomaketta  yhdessä ja olette eri mieltä muutoksen suuruudesta, kirjaa Havaintoja-tilaan, millä perusteella\narvio on tehty.\n\nTallenna täyttämäsi Muutosmittari omiin tiedostoihisi.\n\nMittarin käyttäminen edellyttää, että sallit makrot.\n\nKommunikoinnin perustan taidot -välilehden Reset-painike poistaa jokaisen taulukon kaikki vastaukset."]
[]
[]
[]
[null,null,"Alkutilanne"]
[]
[null,null,"Päivämäärä"]
[null,null,"Havainnoitavan nimi"]
[null,null,"Havaintojen kokoajat"]

{"sheet":"KOMMUNIKOINNIN PERUSTAN TAIDOT","index":1,"n_rows":107,"n_cols":9,"rows_kept":107,"cut":false,"hidden":false,"merged":[[3,8,5,16],[11,8,13,16],[17,8,19,16],[24,8,26,16],[32,8,34,16],[82,8,84,16],[91,8,93,16],[101,8,103,16],[42,8,44,16],[50,8,52,16],[60,8,62,16],[68,8,70,16],[75,8,77,16]]}
[null,"1. Kommunikoinnin perustan taidot"]
[]
[null,"1.01. Nauttii yhdessäolosta ","Ei muutosta","Muuttunut vähän","Muuttunut","Muuttunut paljon",null,null,"Havaintoja:"]
[null,"1. Ilme on myönteisempi vuorovaikutuksessa muiden kanssa."]
[null,"2. Olemus on rennompi."]
[null,"3. On vuorovaikutuksessa pidempään."]
[null,"4. On vuorovaikutuksessa useammin."]
[null,"5. On vuorovaikutuksessa useampien ihmisten kanssa."]
[]
[]
[null,"1.02. Hakeutuu lähemmäs toista ja antaa toisen olla lähellä","Ei muutosta","Muuttunut vähän","Muuttunut","Muuttunut paljon",null,null,"Havaintoja:"]
[null,"1. Hakeutuu useammin toisen lähelle."]
[null,"2. Nauttii ja on rennompi lähikontaktissa."]
[null,"3. Antaa toisen tulla lähelle useammin."]
[]
[]
[null,"1.03. Suuntaa huomionsa toiseen ihmiseen","Ei muutosta","Muuttunut vähän","Muuttunut","Muuttunut paljon",null,null,"Havaintoja:"]
[null,"1. On kiinnostuneempi ja tietoisempi muista ihmisistä."]
[null,"2. Katsoo ja katselee tai kuuntelee enemmän muita ihmisiä."]
[null,"3. Kääntyy tai nojautuu useammin kohti toista ihmistä."]
[null,"4. Reagoi herkemmin, jos toisen huomio siirtyy muualle."]
[]
[]
[null,"1.04. Keskittyy ja on tarkkaavainen","Ei muutosta","Muuttunut vähän","Muuttunut","Muuttunut paljon",null,null,"Havaintoja:"]
[null,"1. Keskittyy ja malttaa olla paikallaan pidempään."]
[null,"2. Suuntaa huomionsa tarkkaavaisemmin toiseen ihmiseen, toimintaan tai tehtävään."]
[null,"3. Vaihtaa huomion kohdetta helpommin."]
[null,"4. Sopeutuu paremmin rutiinien muutoksiin."]
[null,"5. Sietää paremmin keskeytyksiä."]
[]
[]
[null,"1.05. Toimii yhdessä","Ei muutosta","Muuttunut vähän","Muuttunut","Muuttunut paljon",null,null,"Havaintoja:"]
[null,"1. On aloitteellisempi."]
[null,"2. Saa enemmän mielihyvää yhteisestä toiminnasta."]
[null,"3. Puuhailee yhdessä muiden kanssa useammin."]
[null,"4. Pyytää useammin lisää toimintaa."]
[null,"5. Toimii tai leikkii uusilla tai monipuolisemmilla tavoilla toisten kanssa."]
[null,"6. Ilmaisee selkeämmin halunsa lopettaa yhdessäolon."]
[null,"7. Mukautuu paremmin toisen ehdotuksiin (esim. ottaa toisen mukaan omaan leikkiinsä, antaa hänen vaikuttaa leikin sisältöön)."]
[]
[]
[null,"1.06. Vuorottelee eli ottaa ja antaa vuoroja","Ei muutosta","Muuttunut vähän","Muuttunut","Muuttunut paljon",null,null,"Havaintoja:"]
[null,"1. Vuorottelee pidempään."]
[null,"2. Vuorottelee monipuolisemmilla tavoilla (esim. käyttäen kehon liikettä, ilmeitä, kosketusta, toimintaa tai ääntelyä)."]
[null,"3. Osaa paremmin odottaa tai sallii toisen ottaa vuoronsa."]
[null,"4. Osaa tietoisemmin antaa vuoron myös toiselle (esim. pitää tauon ja odottaa toisen vastausta, vuoroa tai osallistumista)."]
[null,"5. Vuorotteluun on tullut enemmän tasavertaisuutta ja se alkaa muistuttaa keskustelua (esim. molemmat voivat toimia joustavasti aloitteen tekijöinä ja vastaajina)."]
[]
[]
[null,"1.07. Säätelee ja kontrolloi omaa aktiivisuustasoaan ja tunteitaan","Ei muutosta","Muuttunut vähän","Muuttunut","Muuttunut paljon",null,null,"Havaintoja:"]
[null,"1. Yliaktiivisuutta on vähemmän."]
[null,"2. Passiivisuus on vähentynyt."]
[null,"3. Tunteet heittelevät vähemmän äärilaidasta toiseen."]
[null,"4. Toipuu helpommin tunteita herättävästä tilanteesta."]
[null,"5. Pyytää tai antaa toisen paremmin auttaa tunteiden ja toiminnan säätelyssä."]
[null,"6. Osaa paremmin säädellä itse omaa aktiivisuustasoaan ja tunteitaan."]
[null,"7. Osaa ottaa paremmin tauon vuorovaikutuksessa tai toiminnassa, kun tarvitsee sitä."]
[]
[]
[null,"1.08. Käyttää ja ymmärtää katsekontaktia ja katsetta","Ei muutosta","Muuttunut vähän","Muuttunut","Muuttunut paljon",null,null,"Havaintoja:"]
[null,"1. Ottaa useammin katsekontaktin tai on katsekontaktissa pidempään."]
[null,"2. Katsekontakti on vivahteikkaampaa ja välittää enemmän hänen ajatuksiaan ja tunteitaan."]
[null,"3. Reagoi ja vastaa herkemmin ja useammin toisen katseeseen."]
[null,"4. On kiinnostuneempi katsomaan samaa, mitä toinen ihminen katsoo."]
[null,"5. Katsoo useammin toista ihmistä halutessaan jakaa kokemuksen."]
[]
[]
[null,"1.09. Käyttää ja ymmärtää ilmeitä","Ei muutosta","Muuttunut vähän","Muuttunut","Muuttunut paljon",null,null,"Havaintoja:"]
[null,"1. Käyttää monipuolisemmin ilmeitä ja ilmeet ovat vivahteikkaampia."]
[null,"2. Jäljittelee enemmän muiden ilmeitä."]
[null,"3. Reagoi ja vastaa enemmän muiden ilmeisiin."]
[null,"4. Vastaa ilmeisiin useammin tilanteeseen sopivasti."]
[]
[]
[null,"1.10. Käyttää ja ymmärtää fyysistä kontaktia","Ei muutosta","Muuttunut vähän","Muuttunut","Muuttunut paljon",null,null,"Havaintoja:"]
[null,"1. Hakee enemmän ja aloitteellisemmin myönteistä fyysistä kontaktia."]
[null,"2. Käyttää fyysistä kontaktia tilanteeseen sopivammin."]
[null,"3. Reagoi myönteisemmin kosketukseen, sietää kosketusta paremmin."]
[null,"4. Osaa paremmin mukauttaa tapansa olla fyysisessä kontaktissa tilanteen tai kumppaninsa mukaan."]
[]
[]
[null,"1.11. Käyttää ja ymmärtää olemuskieltä ja muuta sanatonta viestintää","Ei muutosta","Muuttunut vähän","Muuttunut","Muuttunut paljon",null,null,"Havaintoja:"]
[null,"1. Ilmaisee toiminnallaan asioita monipuolisemmin tai useammin."]
[null,"2. Ilmaisee olemuskielellään enemmän tai monipuolisemmin."]
[null,"3. Käyttää eleitä enemmän tai monipuolisemmin."]
[null,"4. Jäljittelee enemmän toisten toimintaa ja eleitä."]
[null,"5. Reagoi herkemmin muiden sanattomaan viestintään."]
[null,"6. Vastaa herkemmin muiden olemuskieleen, toimintaan ja eleisiin."]
[]
[]
[null,"1.12. Käyttää ja ymmärtää ääntelyä, sanoja ja puhetta merkityksellisesti","Ei muutosta","Muuttunut vähän","Muuttunut","Muuttunut paljon",null,null,"Havaintoja:"]
[null,"1. Ääntelee useammin."]
[null,"2. Vaihtelee äänensävyä, korkeutta ja voimakkuutta enemmän."]
[null,"3. Ääntelee uusilla tavoilla, tuottaa uusia äänteitä, tavuja tai sanoja."]
[null,"4. Käyttää ääntelyään, puhettaan tai sanojaan tietoisemmin erilaisiin tarkoituksiin (esim. kutsuu, kertoo, käskee…)."]
[null,"5. Jäljittelee muiden ääntelyä, sanoja tai puhetta vuorovaikutteisemmin."]
[null,"6. Reagoi ja vastaa herkemmin toisten puheeseen."]
[null,"7. Ymmärtää paremmin puhetta (esim. noudattaa kehotuksia, tunnistaa nimensä ja tuttuja ilmauksia)."]
[]
[]
[null,"1.13. Käyttää ja ymmärtää kommunikoinnin tukikeinoja (AAC) merkityksellisesti","Ei muutosta","Muuttunut vähän","Muuttunut","Muuttunut paljon",null,null,"Havaintoja:"]
[null,"1. Käyttää kommunikoinnin tukikeinojaan useammin (viittomat, kuvat, kirjoitus, kommunikoinnin apuvälineet)."]
[null,"2. Viestii kommunikoinnin tukikeinoilla monipuolisemmin."]
[null,"3. Käyttää kommunikoinnin tukikeinoja tietoisemmin erilaisiin tarkoituksiin (esim. kutsuu, kertoo, käskee…)."]
[null,"4. Käyttää kommunikoinnin tukikeinojaan vuorovaikutteisemmin."]
[null,"5. Jäljittelee enemmän sitä, kun toinen mallittaa kommunikoinnin tukikeinoja (esim. viittoo perässä, osoittaa kansiosta kuvia mallista…)."]
[null,"6. Reagoi ja vastaa herkemmin, kun toiset käyttävät kommunikoinnin tukikeinoja."]

{"sheet":"TUNNETAIDOT","index":2,"n_rows":48,"n_cols":9,"rows_kept":48,"cut":false,"hidden":false,"merged":[[44,8,46,16],[3,8,5,16],[9,8,11,16],[15,8,17,16],[23,8,25,16],[29,8,31,16],[37,8,39,16]]}
[null,"2. Tunnetaidot"]
[]
[null,"2.01. Osoittaa kiintymistä, \nliittyy ja sitoutuu","Ei muutosta","Muuttunut vähän","Muuttunut","Muuttunut paljon",null,null,"Havaintoja:"]
[null,"1. On tunnetasolla voimakkaammin yhteydessä toiseen vuorovaikutuksen aikana."]
[null,"2. Osoittaa enemmän pitävänsä toisesta."]
[null,"3. Osoittaa enemmän pitävänsä tietyistä ihmisistä."]
[]
[]
[null,"2.02. Tuntee, että toiset välittävät, ja luottaa toisiin ihmisiin","Ei muutosta","Muuttunut vähän","Muuttunut","Muuttunut paljon",null,null,"Havaintoja:"]
[null,"1. Hakee aiempaa enemmän muiden läheisyyttä."]
[null,"2. Osaa paremmin hakea lohdutusta, kun tarvitsee sitä."]
[null,"3. Pyytää useammin apua."]
[]
[]
[null,"2.03. Ilmaisee tunteita ja tunnistaa toisten mielialoja","Ei muutosta","Muuttunut vähän","Muuttunut","Muuttunut paljon",null,null,"Havaintoja:"]
[null,"1. Ilmaisee käyttäytymisellään itseään tai mielialojaan enemmän."]
[null,"2. Ilmaisee monipuolisemmin erilaisia tunteita."]
[null,"3. Näyttää monipuolisemmin tunteitaan kasvojen ilmeillä."]
[null,"4. Havainnoi enemmän kumppaninsa tunneilmauksia."]
[null,"5. Kykenee tulkitsemaan toisen mielialoja herkemmin ja virittymään niihin."]
[]
[]
[null,"2.04. On empaattinen, välittää miltä toisesta ihmisestä tuntuu.","Ei muutosta","Muuttunut vähän","Muuttunut","Muuttunut paljon",null,null,"Havaintoja:"]
[null,"1. Liittyy useammin mukaan toisen tunteisiin (esim. liittyy toisen iloon, suruun)."]
[null,"2. Ottaa herkemmin toisen tunteet huomioon."]
[null,"3. Osaa useammin lohduttaa, rauhoittaa tai innostaa toista tilanteen vaatimalla tavalla."]
[]
[]
[null,"2.05. Tuntee olonsa turvalliseksi, varmaksi ja rauhalliseksi","Ei muutosta","Muuttunut vähän","Muuttunut","Muuttunut paljon",null,null,"Havaintoja:"]
[null,"1. Näyttää onnellisemmalta, tyytyväisemmältä."]
[null,"2. On rauhallisempi."]
[null,"3. On vähemmän ahdistunut tai aggressiivinen."]
[null,"4. Levotonta toistavaa, stereotyyppistä käyttäytymistä on vähemmän."]
[null,"5. Tutkii enemmän ympäristöään."]
[]
[]
[null,"2.06. Itsetuntemus ","Ei muutosta","Muuttunut vähän","Muuttunut","Muuttunut paljon",null,null,"Havaintoja:"]
[null,"1. On tietoisempi itsestään (tietää kuka on ja mitä haluaa)."]
[null,"2. On kiinnostuneempi itsestään."]
[null,"3. Ilmaisee paremmin mieltymyksiään, toiveitaan ja tarpeitaan (esim. mistä pitää ja ei pidä)."]
[null,"4. Ilmaisee enemmän persoonallisuuttaan."]
[]
[]
[null,"2.07. Itsetunto ","Ei muutosta","Muuttunut vähän","Muuttunut","Muuttunut paljon",null,null,"Havaintoja:"]
[null,"1. Luottaa enemmän itseensä."]
[null,"2. On sinnikkäämpi."]
[null,"3. Suhtautuu itseensä myönteisemmin."]
[null,"4. On rohkeampi, yrittää enemmän itse."]

{"sheet":"MUUT TAIDOT","index":3,"n_rows":10,"n_cols":9,"rows_kept":10,"cut":false,"hidden":false,"merged":[[3,8,5,16]]}
[null,"3. Muut taidot"]
[]
[null,"3.01. Muita muutoksia","Ei muutosta","Muuttunut vähän","Muuttunut","Muuttunut paljon",null,null,"Havaintoja:"]
[null,"1. On virkeämpi"]
[null,"2. Asento on parantunut."]
[null,"3. Fyysinen aktiivisuus on lisääntynyt,\nliikkuu enemmän."]
[null,"4. On tyytyväisemmän oloinen."]
[null,"5. Haastava käyttäytyminen on\n vähentynyt."]
[null,"6. Viettää vähemmän aikaa \nitsestimuloivassa toiminnassa."]
[null,"7. Sietää paremmin ääni-, näkö-,\nkosketus-, haju- ja liikeärsykkeitä."]

{"sheet":"Data","index":4,"n_rows":103,"n_cols":6,"rows_kept":103,"cut":false,"hidden":true,"merged":[]}
["Yläotsikko","Otsikko","Tehtävä","Muutos","Pros"]
[{"$f":"'KOMMUNIKOINNIN PERUSTAN TAIDOT'!$B$1","v":"1. Kommunikoinnin perustan taidot"},{"$f":"'KOMMUNIKOINNIN PERUSTAN TAIDOT'!$B$3","v":"1.01. Nauttii yhdessäolosta "},{"$f":"'KOMMUNIKOINNIN PERUSTAN TAIDOT'!B4","v":"1. Ilme on myönteisempi vuorovaikutuksessa muiden kanssa."},{"$f":"IF(E2=0,\"\",IF(E2=0.25,\"Ei muutosta\",IF(E2=0.5,\"Muuttunut vähän\",IF(E2=0.75,\"Muuttunut\",IF(E2=1,\"Muuttunut paljon\")))))","v":""},{"$f":"F2/4","v":0},0]
[{"$f":"'KOMMUNIKOINNIN PERUSTAN TAIDOT'!$B$1","v":"1. Kommunikoinnin perustan taidot"},{"$f":"'KOMMUNIKOINNIN PERUSTAN TAIDOT'!$B$3","v":"1.01. Nauttii yhdessäolosta "},{"$f":"'KOMMUNIKOINNIN PERUSTAN TAIDOT'!B5","v":"2. Olemus on rennompi."},{"$f":"IF(E3=0,\"\",IF(E3=0.25,\"Ei muutosta\",IF(E3=0.5,\"Muuttunut vähän\",IF(E3=0.75,\"Muuttunut\",IF(E3=1,\"Muuttunut paljon\")))))","v":""},0,0]
[{"$f":"'KOMMUNIKOINNIN PERUSTAN TAIDOT'!$B$1","v":"1. Kommunikoinnin perustan taidot"},{"$f":"'KOMMUNIKOINNIN PERUSTAN TAIDOT'!$B$3","v":"1.01. Nauttii yhdessäolosta "},{"$f":"'KOMMUNIKOINNIN PERUSTAN TAIDOT'!B6","v":"3. On vuorovaikutuksessa pidempään."},"",0,0]
[{"$f":"'KOMMUNIKOINNIN PERUSTAN TAIDOT'!$B$1","v":"1. Kommunikoinnin perustan taidot"},{"$f":"'KOMMUNIKOINNIN PERUSTAN TAIDOT'!$B$3","v":"1.01. Nauttii yhdessäolosta "},{"$f":"'KOMMUNIKOINNIN PERUSTAN TAIDOT'!B7","v":"4. On vuorovaikutuksessa useammin."},"",0,0]
[{"$f":"'KOMMUNIKOINNIN PERUSTAN TAIDOT'!$B$1","v":"1. Kommunikoinnin perustan taidot"},{"$f":"'KOMMUNIKOINNIN PERUSTAN TAIDOT'!$B$3","v":"1.01. Nauttii yhdessäolosta "},{"$f":"'KOMMUNIKOINNIN PERUSTAN TAIDOT'!B8","v":"5. On vuorovaikutuksessa useampien ihmisten kanssa."},"",0,0]
[{"$f":"'KOMMUNIKOINNIN PERUSTAN TAIDOT'!$B$1","v":"1. Kommunikoinnin perustan taidot"},{"$f":"'KOMMUNIKOINNIN PERUSTAN TAIDOT'!$B$11","v":"1.02. Hakeutuu lähemmäs toista ja antaa toisen olla lähellä"},{"$f":"'KOMMUNIKOINNIN PERUSTAN TAIDOT'!B12","v":"1. Hakeutuu useammin toisen lähelle."},"",0,0]
[{"$f":"'KOMMUNIKOINNIN PERUSTAN TAIDOT'!$B$1","v":"1. Kommunikoinnin perustan taidot"},{"$f":"'KOMMUNIKOINNIN PERUSTAN TAIDOT'!$B$11","v":"1.02. Hakeutuu lähemmäs toista ja antaa toisen olla lähellä"},{"$f":"'KOMMUNIKOINNIN PERUSTAN TAIDOT'!B13","v":"2. Nauttii ja on rennompi lähikontaktissa."},"",0,0]
[{"$f":"'KOMMUNIKOINNIN PERUSTAN TAIDOT'!$B$1","v":"1. Kommunikoinnin perustan taidot"},{"$f":"'KOMMUNIKOINNIN PERUSTAN TAIDOT'!$B$11","v":"1.02. Hakeutuu lähemmäs toista ja antaa toisen olla lähellä"},{"$f":"'KOMMUNIKOINNIN PERUSTAN TAIDOT'!B14","v":"3. Antaa toisen tulla lähelle useammin."},"",0,0]
[{"$f":"'KOMMUNIKOINNIN PERUSTAN TAIDOT'!$B$1","v":"1. Kommunikoinnin perustan taidot"},{"$f":"'KOMMUNIKOINNIN PERUSTAN TAIDOT'!$B$17","v":"1.03. Suuntaa huomionsa toiseen ihmiseen"},{"$f":"'KOMMUNIKOINNIN PERUSTAN TAIDOT'!B18","v":"1. On kiinnostuneempi ja tietoisempi muista ihmisistä."},"",0,0]
[{"$f":"'KOMMUNIKOINNIN PERUSTAN TAIDOT'!$B$1","v":"1. Kommunikoinnin perustan taidot"},{"$f":"'KOMMUNIKOINNIN PERUSTAN TAIDOT'!$B$17","v":"1.03. Suuntaa huomionsa toiseen ihmiseen"},{"$f":"'KOMMUNIKOINNIN PERUSTAN TAIDOT'!B19","v":"2. Katsoo ja katselee tai kuuntelee enemmän muita ihmisiä."},"",0,0]
[{"$f":"'KOMMUNIKOINNIN PERUSTAN TAIDOT'!$B$1","v":"1. Kommunikoinnin perustan taidot"},{"$f":"'KOMMUNIKOINNIN PERUSTAN TAIDOT'!$B$17","v":"1.03. Suuntaa huomionsa toiseen ihmiseen"},{"$f":"'KOMMUNIKOINNIN PERUSTAN TAIDOT'!B20","v":"3. Kääntyy tai nojautuu useammin kohti toista ihmistä."},"",0,0]
[{"$f":"'KOMMUNIKOINNIN PERUSTAN TAIDOT'!$B$1","v":"1. Kommunikoinnin perustan taidot"},{"$f":"'KOMMUNIKOINNIN PERUSTAN TAIDOT'!$B$17","v":"1.03. Suuntaa huomionsa toiseen ihmiseen"},{"$f":"'KOMMUNIKOINNIN PERUSTAN TAIDOT'!B21","v":"4. Reagoi herkemmin, jos toisen huomio siirtyy muualle."},"",0,0]
[{"$f":"'KOMMUNIKOINNIN PERUSTAN TAIDOT'!$B$1","v":"1. Kommunikoinnin perustan taidot"},{"$f":"'KOMMUNIKOINNIN PERUSTAN TAIDOT'!$B$24","v":"1.04. Keskittyy ja on tarkkaavainen"},{"$f":"'KOMMUNIKOINNIN PERUSTAN TAIDOT'!B25","v":"1. Keskittyy ja malttaa olla paikallaan pidempään."},"",0,0]
[{"$f":"'KOMMUNIKOINNIN PERUSTAN TAIDOT'!$B$1","v":"1. Kommunikoinnin perustan taidot"},{"$f":"'KOMMUNIKOINNIN PERUSTAN TAIDOT'!$B$24","v":"1.04. Keskittyy ja on tarkkaavainen"},{"$f":"'KOMMUNIKOINNIN PERUSTAN TAIDOT'!B26","v":"2. Suuntaa huomionsa tarkkaavaisemmin toiseen ihmiseen, toimintaan tai tehtävään."},"",0,0]
[{"$f":"'KOMMUNIKOINNIN PERUSTAN TAIDOT'!$B$1","v":"1. Kommunikoinnin perustan taidot"},{"$f":"'KOMMUNIKOINNIN PERUSTAN TAIDOT'!$B$24","v":"1.04. Keskittyy ja on tarkkaavainen"},{"$f":"'KOMMUNIKOINNIN PERUSTAN TAIDOT'!B27","v":"3. Vaihtaa huomion kohdetta helpommin."},"",0,0]
[{"$f":"'KOMMUNIKOINNIN PERUSTAN TAIDOT'!$B$1","v":"1. Kommunikoinnin perustan taidot"},{"$f":"'KOMMUNIKOINNIN PERUSTAN TAIDOT'!$B$24","v":"1.04. Keskittyy ja on tarkkaavainen"},{"$f":"'KOMMUNIKOINNIN PERUSTAN TAIDOT'!B28","v":"4. Sopeutuu paremmin rutiinien muutoksiin."},"",0,0]
[{"$f":"'KOMMUNIKOINNIN PERUSTAN TAIDOT'!$B$1","v":"1. Kommunikoinnin perustan taidot"},{"$f":"'KOMMUNIKOINNIN PERUSTAN TAIDOT'!$B$24","v":"1.04. Keskittyy ja on tarkkaavainen"},{"$f":"'KOMMUNIKOINNIN PERUSTAN TAIDOT'!B29","v":"5. Sietää paremmin keskeytyksiä."},"",0,0]
[{"$f":"'KOMMUNIKOINNIN PERUSTAN TAIDOT'!$B$1","v":"1. Kommunikoinnin perustan taidot"},{"$f":"'KOMMUNIKOINNIN PERUSTAN TAIDOT'!$B$32","v":"1.05. Toimii yhdessä"},{"$f":"'KOMMUNIKOINNIN PERUSTAN TAIDOT'!B33","v":"1. On aloitteellisempi."},"",0,0]
[{"$f":"'KOMMUNIKOINNIN PERUSTAN TAIDOT'!$B$1","v":"1. Kommunikoinnin perustan taidot"},{"$f":"'KOMMUNIKOINNIN PERUSTAN TAIDOT'!$B$32","v":"1.05. Toimii yhdessä"},{"$f":"'KOMMUNIKOINNIN PERUSTAN TAIDOT'!B34","v":"2. Saa enemmän mielihyvää yhteisestä toiminnasta."},"",0,0]
[{"$f":"'KOMMUNIKOINNIN PERUSTAN TAIDOT'!$B$1","v":"1. Kommunikoinnin perustan taidot"},{"$f":"'KOMMUNIKOINNIN PERUSTAN TAIDOT'!$B$32","v":"1.05. Toimii yhdessä"},{"$f":"'KOMMUNIKOINNIN PERUSTAN TAIDOT'!B35","v":"3. Puuhailee yhdessä muiden kanssa useammin."},"",0,0]
[{"$f":"'KOMMUNIKOINNIN PERUSTAN TAIDOT'!$B$1","v":"1. Kommunikoinnin perustan taidot"},{"$f":"'KOMMUNIKOINNIN PERUSTAN TAIDOT'!$B$32","v":"1.05. Toimii yhdessä"},{"$f":"'KOMMUNIKOINNIN PERUSTAN TAIDOT'!B36","v":"4. Pyytää useammin lisää toimintaa."},"",0,0]
[{"$f":"'KOMMUNIKOINNIN PERUSTAN TAIDOT'!$B$1","v":"1. Kommunikoinnin perustan taidot"},{"$f":"'KOMMUNIKOINNIN PERUSTAN TAIDOT'!$B$32","v":"1.05. Toimii yhdessä"},{"$f":"'KOMMUNIKOINNIN PERUSTAN TAIDOT'!B37","v":"5. Toimii tai leikkii uusilla tai monipuolisemmilla tavoilla toisten kanssa."},"",0,0]
[{"$f":"'KOMMUNIKOINNIN PERUSTAN TAIDOT'!$B$1","v":"1. Kommunikoinnin perustan taidot"},{"$f":"'KOMMUNIKOINNIN PERUSTAN TAIDOT'!$B$32","v":"1.05. Toimii yhdessä"},{"$f":"'KOMMUNIKOINNIN PERUSTAN TAIDOT'!B38","v":"6. Ilmaisee selkeämmin halunsa lopettaa yhdessäolon."},"",0,0]
[{"$f":"'KOMMUNIKOINNIN PERUSTAN TAIDOT'!$B$1","v":"1. Kommunikoinnin perustan taidot"},{"$f":"'KOMMUNIKOINNIN PERUSTAN TAIDOT'!$B$32","v":"1.05. Toimii yhdessä"},{"$f":"'KOMMUNIKOINNIN PERUSTAN TAIDOT'!B39","v":"7. Mukautuu paremmin toisen ehdotuksiin (esim. ottaa toisen mukaan omaan leikkiinsä, antaa hänen vaikuttaa leikin sisältöön)."},"",0,0]
[{"$f":"'KOMMUNIKOINNIN PERUSTAN TAIDOT'!$B$1","v":"1. Kommunikoinnin perustan taidot"},{"$f":"'KOMMUNIKOINNIN PERUSTAN TAIDOT'!$B$42","v":"1.06. Vuorottelee eli ottaa ja antaa vuoroja"},{"$f":"'KOMMUNIKOINNIN PERUSTAN TAIDOT'!B43","v":"1. Vuorottelee pidempään."},"",0,0]
[{"$f":"'KOMMUNIKOINNIN PERUSTAN TAIDOT'!$B$1","v":"1. Kommunikoinnin perustan taidot"},{"$f":"'KOMMUNIKOINNIN PERUSTAN TAIDOT'!$B$42","v":"1.06. Vuorottelee eli ottaa ja antaa vuoroja"},{"$f":"'KOMMUNIKOINNIN PERUSTAN TAIDOT'!B44","v":"2. Vuorottelee monipuolisemmilla tavoilla (esim. käyttäen kehon liikettä, ilmeitä, kosketusta, toimintaa tai ääntelyä)."},"",0,0]
[{"$f":"'KOMMUNIKOINNIN PERUSTAN TAIDOT'!$B$1","v":"1. Kommunikoinnin perustan taidot"},{"$f":"'KOMMUNIKOINNIN PERUSTAN TAIDOT'!$B$42","v":"1.06. Vuorottelee eli ottaa ja antaa vuoroja"},{"$f":"'KOMMUNIKOINNIN PERUSTAN TAIDOT'!B45","v":"3. Osaa paremmin odottaa tai sallii toisen ottaa vuoronsa."},"",0,0]
[{"$f":"'KOMMUNIKOINNIN PERUSTAN TAIDOT'!$B$1","v":"1. Kommunikoinnin perustan taidot"},{"$f":"'KOMMUNIKOINNIN PERUSTAN TAIDOT'!$B$42","v":"1.06. Vuorottelee eli ottaa ja antaa vuoroja"},{"$f":"'KOMMUNIKOINNIN PERUSTAN TAIDOT'!B46","v":"4. Osaa tietoisemmin antaa vuoron myös toiselle (esim. pitää tauon ja odottaa toisen vastausta, vuoroa tai osallistumista)."},"",0,0]
[{"$f":"'KOMMUNIKOINNIN PERUSTAN TAIDOT'!$B$1","v":"1. Kommunikoinnin perustan taidot"},{"$f":"'KOMMUNIKOINNIN PERUSTAN TAIDOT'!$B$42","v":"1.06. Vuorottelee eli ottaa ja antaa vuoroja"},{"$f":"'KOMMUNIKOINNIN PERUSTAN TAIDOT'!B47","v":"5. Vuorotteluun on tullut enemmän tasavertaisuutta ja se alkaa muistuttaa keskustelua (esim. molemmat voivat toimia joustavasti aloitteen tekijöinä ja vastaajina)."},"",0,0]
[{"$f":"'KOMMUNIKOINNIN PERUSTAN TAIDOT'!$B$1","v":"1. Kommunikoinnin perustan taidot"},{"$f":"'KOMMUNIKOINNIN PERUSTAN TAIDOT'!$B$50","v":"1.07. Säätelee ja kontrolloi omaa aktiivisuustasoaan ja tunteitaan"},{"$f":"'KOMMUNIKOINNIN PERUSTAN TAIDOT'!B51","v":"1. Yliaktiivisuutta on vähemmän."},"",0,0]
[{"$f":"'KOMMUNIKOINNIN PERUSTAN TAIDOT'!$B$1","v":"1. Kommunikoinnin perustan taidot"},{"$f":"'KOMMUNIKOINNIN PERUSTAN TAIDOT'!$B$50","v":"1.07. Säätelee ja kontrolloi omaa aktiivisuustasoaan ja tunteitaan"},{"$f":"'KOMMUNIKOINNIN PERUSTAN TAIDOT'!B52","v":"2. Passiivisuus on vähentynyt."},"",0,0]
[{"$f":"'KOMMUNIKOINNIN PERUSTAN TAIDOT'!$B$1","v":"1. Kommunikoinnin perustan taidot"},{"$f":"'KOMMUNIKOINNIN PERUSTAN TAIDOT'!$B$50","v":"1.07. Säätelee ja kontrolloi omaa aktiivisuustasoaan ja tunteitaan"},{"$f":"'KOMMUNIKOINNIN PERUSTAN TAIDOT'!B53","v":"3. Tunteet heittelevät vähemmän äärilaidasta toiseen."},"",0,0]
[{"$f":"'KOMMUNIKOINNIN PERUSTAN TAIDOT'!$B$1","v":"1. Kommunikoinnin perustan taidot"},{"$f":"'KOMMUNIKOINNIN PERUSTAN TAIDOT'!$B$50","v":"1.07. Säätelee ja kontrolloi omaa aktiivisuustasoaan ja tunteitaan"},{"$f":"'KOMMUNIKOINNIN PERUSTAN TAIDOT'!B54","v":"4. Toipuu helpommin tunteita herättävästä tilanteesta."},"",{"$f":"F34/4","v":0},0]
[{"$f":"'KOMMUNIKOINNIN PERUSTAN TAIDOT'!$B$1","v":"1. Kommunikoinnin perustan taidot"},{"$f":"'KOMMUNIKOINNIN PERUSTAN TAIDOT'!$B$50","v":"1.07. Säätelee ja kontrolloi omaa aktiivisuustasoaan ja tunteitaan"},{"$f":"'KOMMUNIKOINNIN PERUSTAN TAIDOT'!B55","v":"5. Pyytää tai antaa toisen paremmin auttaa tunteiden ja toiminnan säätelyssä."},"",0,0]
[{"$f":"'KOMMUNIKOINNIN PERUSTAN TAIDOT'!$B$1","v":"1. Kommunikoinnin perustan taidot"},{"$f":"'KOMMUNIKOINNIN PERUSTAN TAIDOT'!$B$50","v":"1.07. Säätelee ja kontrolloi omaa aktiivisuustasoaan ja tunteitaan"},{"$f":"'KOMMUNIKOINNIN PERUSTAN TAIDOT'!B56","v":"6. Osaa paremmin säädellä itse omaa aktiivisuustasoaan ja tunteitaan."},"",0,0]
[{"$f":"'KOMMUNIKOINNIN PERUSTAN TAIDOT'!$B$1","v":"1. Kommunikoinnin perustan taidot"},{"$f":"'KOMMUNIKOINNIN PERUSTAN TAIDOT'!$B$50","v":"1.07. Säätelee ja kontrolloi omaa aktiivisuustasoaan ja tunteitaan"},{"$f":"'KOMMUNIKOINNIN PERUSTAN TAIDOT'!B57","v":"7. Osaa ottaa paremmin tauon vuorovaikutuksessa tai toiminnassa, kun tarvitsee sitä."},"",0,0]
[{"$f":"'KOMMUNIKOINNIN PERUSTAN TAIDOT'!$B$1","v":"1. Kommunikoinnin perustan taidot"},{"$f":"'KOMMUNIKOINNIN PERUSTAN TAIDOT'!$B$60","v":"1.08. Käyttää ja ymmärtää katsekontaktia ja katsetta"},{"$f":"'KOMMUNIKOINNIN PERUSTAN TAIDOT'!B61","v":"1. Ottaa useammin katsekontaktin tai on katsekontaktissa pidempään."},"",0,0]
[{"$f":"'KOMMUNIKOINNIN PERUSTAN TAIDOT'!$B$1","v":"1. Kommunikoinnin perustan taidot"},{"$f":"'KOMMUNIKOINNIN PERUSTAN TAIDOT'!$B$60","v":"1.08. Käyttää ja ymmärtää katsekontaktia ja katsetta"},{"$f":"'KOMMUNIKOINNIN PERUSTAN TAIDOT'!B62","v":"2. Katsekontakti on vivahteikkaampaa ja välittää enemmän hänen ajatuksiaan ja tunteitaan."},"",0,0]
[{"$f":"'KOMMUNIKOINNIN PERUSTAN TAIDOT'!$B$1","v":"1. Kommunikoinnin perustan taidot"},{"$f":"'KOMMUNIKOINNIN PERUSTAN TAIDOT'!$B$60","v":"1.08. Käyttää ja ymmärtää katsekontaktia ja katsetta"},{"$f":"'KOMMUNIKOINNIN PERUSTAN TAIDOT'!B63","v":"3. Reagoi ja vastaa herkemmin ja useammin toisen katseeseen."},"",0,0]
[{"$f":"'KOMMUNIKOINNIN PERUSTAN TAIDOT'!$B$1","v":"1. Kommunikoinnin perustan taidot"},{"$f":"'KOMMUNIKOINNIN PERUSTAN TAIDOT'!$B$60","v":"1.08. Käyttää ja ymmärtää katsekontaktia ja katsetta"},{"$f":"'KOMMUNIKOINNIN PERUSTAN TAIDOT'!B64","v":"4. On kiinnostuneempi katsomaan samaa, mitä toinen ihminen katsoo."},"",0,0]
[{"$f":"'KOMMUNIKOINNIN PERUSTAN TAIDOT'!$B$1","v":"1. Kommunikoinnin perustan taidot"},{"$f":"'KOMMUNIKOINNIN PERUSTAN TAIDOT'!$B$60","v":"1.08. Käyttää ja ymmärtää katsekontaktia ja katsetta"},{"$f":"'KOMMUNIKOINNIN PERUSTAN TAIDOT'!B65","v":"5. Katsoo useammin toista ihmistä halutessaan jakaa kokemuksen."},"",0,0]
[{"$f":"'KOMMUNIKOINNIN PERUSTAN TAIDOT'!$B$1","v":"1. Kommunikoinnin perustan taidot"},{"$f":"'KOMMUNIKOINNIN PERUSTAN TAIDOT'!$B$68","v":"1.09. Käyttää ja ymmärtää ilmeitä"},{"$f":"'KOMMUNIKOINNIN PERUSTAN TAIDOT'!B69","v":"1. Käyttää monipuolisemmin ilmeitä ja ilmeet ovat vivahteikkaampia."},"",0,0]
[{"$f":"'KOMMUNIKOINNIN PERUSTAN TAIDOT'!$B$1","v":"1. Kommunikoinnin perustan taidot"},{"$f":"'KOMMUNIKOINNIN PERUSTAN TAIDOT'!$B$68","v":"1.09. Käyttää ja ymmärtää ilmeitä"},{"$f":"'KOMMUNIKOINNIN PERUSTAN TAIDOT'!B70","v":"2. Jäljittelee enemmän muiden ilmeitä."},"",0,0]
[{"$f":"'KOMMUNIKOINNIN PERUSTAN TAIDOT'!$B$1","v":"1. Kommunikoinnin perustan taidot"},{"$f":"'KOMMUNIKOINNIN PERUSTAN TAIDOT'!$B$68","v":"1.09. Käyttää ja ymmärtää ilmeitä"},{"$f":"'KOMMUNIKOINNIN PERUSTAN TAIDOT'!B71","v":"3. Reagoi ja vastaa enemmän muiden ilmeisiin."},"",0,0]
[{"$f":"'KOMMUNIKOINNIN PERUSTAN TAIDOT'!$B$1","v":"1. Kommunikoinnin perustan taidot"},{"$f":"'KOMMUNIKOINNIN PERUSTAN TAIDOT'!$B$68","v":"1.09. Käyttää ja ymmärtää ilmeitä"},{"$f":"'KOMMUNIKOINNIN PERUSTAN TAIDOT'!B72","v":"4. Vastaa ilmeisiin useammin tilanteeseen sopivasti."},"",0,0]
[{"$f":"'KOMMUNIKOINNIN PERUSTAN TAIDOT'!$B$1","v":"1. Kommunikoinnin perustan taidot"},{"$f":"'KOMMUNIKOINNIN PERUSTAN TAIDOT'!$B$75","v":"1.10. Käyttää ja ymmärtää fyysistä kontaktia"},{"$f":"'KOMMUNIKOINNIN PERUSTAN TAIDOT'!B76","v":"1. Hakee enemmän ja aloitteellisemmin myönteistä fyysistä kontaktia."},"",0,0]
[{"$f":"'KOMMUNIKOINNIN PERUSTAN TAIDOT'!$B$1","v":"1. Kommunikoinnin perustan taidot"},{"$f":"'KOMMUNIKOINNIN PERUSTAN TAIDOT'!$B$75","v":"1.10. Käyttää ja ymmärtää fyysistä kontaktia"},{"$f":"'KOMMUNIKOINNIN PERUSTAN TAIDOT'!B77","v":"2. Käyttää fyysistä kontaktia tilanteeseen sopivammin."},"",0,0]
[{"$f":"'KOMMUNIKOINNIN PERUSTAN TAIDOT'!$B$1","v":"1. Kommunikoinnin perustan taidot"},{"$f":"'KOMMUNIKOINNIN PERUSTAN TAIDOT'!$B$75","v":"1.10. Käyttää ja ymmärtää fyysistä kontaktia"},{"$f":"'KOMMUNIKOINNIN PERUSTAN TAIDOT'!B78","v":"3. Reagoi myönteisemmin kosketukseen, sietää kosketusta paremmin."},"",0,0]
[{"$f":"'KOMMUNIKOINNIN PERUSTAN TAIDOT'!$B$1","v":"1. Kommunikoinnin perustan taidot"},{"$f":"'KOMMUNIKOINNIN PERUSTAN TAIDOT'!$B$75","v":"1.10. Käyttää ja ymmärtää fyysistä kontaktia"},{"$f":"'KOMMUNIKOINNIN PERUSTAN TAIDOT'!B79","v":"4. Osaa paremmin mukauttaa tapansa olla fyysisessä kontaktissa tilanteen tai kumppaninsa mukaan."},"",0,0]
[{"$f":"'KOMMUNIKOINNIN PERUSTAN TAIDOT'!$B$1","v":"1. Kommunikoinnin perustan taidot"},{"$f":"'KOMMUNIKOINNIN PERUSTAN TAIDOT'!$B$82","v":"1.11. Käyttää ja ymmärtää olemuskieltä ja muuta sanatonta viestintää"},{"$f":"'KOMMUNIKOINNIN PERUSTAN TAIDOT'!B83","v":"1. Ilmaisee toiminnallaan asioita monipuolisemmin tai useammin."},"",0,0]
[{"$f":"'KOMMUNIKOINNIN PERUSTAN TAIDOT'!$B$1","v":"1. Kommunikoinnin perustan taidot"},{"$f":"'KOMMUNIKOINNIN PERUSTAN TAIDOT'!$B$82","v":"1.11. Käyttää ja ymmärtää olemuskieltä ja muuta sanatonta viestintää"},{"$f":"'KOMMUNIKOINNIN PERUSTAN TAIDOT'!B84","v":"2. Ilmaisee olemuskielellään enemmän tai monipuolisemmin."},"",0,0]
[{"$f":"'KOMMUNIKOINNIN PERUSTAN TAIDOT'!$B$1","v":"1. Kommunikoinnin perustan taidot"},{"$f":"'KOMMUNIKOINNIN PERUSTAN TAIDOT'!$B$82","v":"1.11. Käyttää ja ymmärtää olemuskieltä ja muuta sanatonta viestintää"},{"$f":"'KOMMUNIKOINNIN PERUSTAN TAIDOT'!B85","v":"3. Käyttää eleitä enemmän tai monipuolisemmin."},"",0,0]
[{"$f":"'KOMMUNIKOINNIN PERUSTAN TAIDOT'!$B$1","v":"1. Kommunikoinnin perustan taidot"},{"$f":"'KOMMUNIKOINNIN PERUSTAN TAIDOT'!$B$82","v":"1.11. Käyttää ja ymmärtää olemuskieltä ja muuta sanatonta viestintää"},{"$f":"'KOMMUNIKOINNIN PERUSTAN TAIDOT'!B86","v":"4. Jäljittelee enemmän toisten toimintaa ja eleitä."},"",0,0]
[{"$f":"'KOMMUNIKOINNIN PERUSTAN TAIDOT'!$B$1","v":"1. Kommunikoinnin perustan taidot"},{"$f":"'KOMMUNIKOINNIN PERUSTAN TAIDOT'!$B$82","v":"1.11. Käyttää ja ymmärtää olemuskieltä ja muuta sanatonta viestintää"},{"$f":"'KOMMUNIKOINNIN PERUSTAN TAIDOT'!B87","v":"5. Reagoi herkemmin muiden sanattomaan viestintään."},"",0,0]
[{"$f":"'KOMMUNIKOINNIN PERUSTAN TAIDOT'!$B$1","v":"1. Kommunikoinnin perustan taidot"},{"$f":"'KOMMUNIKOINNIN PERUSTAN TAIDOT'!$B$82","v":"1.11. Käyttää ja ymmärtää olemuskieltä ja muuta sanatonta viestintää"},{"$f":"'KOMMUNIKOINNIN PERUSTAN TAIDOT'!B88","v":"6. Vastaa herkemmin muiden olemuskieleen, toimintaan ja eleisiin."},"",0,0]
[{"$f":"'KOMMUNIKOINNIN PERUSTAN TAIDOT'!$B$1","v":"1. Kommunikoinnin perustan taidot"},{"$f":"'KOMMUNIKOINNIN PERUSTAN TAIDOT'!$B$91","v":"1.12. Käyttää ja ymmärtää ääntelyä, sanoja ja puhetta merkityksellisesti"},{"$f":"'KOMMUNIKOINNIN PERUSTAN TAIDOT'!B92","v":"1. Ääntelee useammin."},"",0,0]
[{"$f":"'KOMMUNIKOINNIN PERUSTAN TAIDOT'!$B$1","v":"1. Kommunikoinnin perustan taidot"},{"$f":"'KOMMUNIKOINNIN PERUSTAN TAIDOT'!$B$91","v":"1.12. Käyttää ja ymmärtää ääntelyä, sanoja ja puhetta merkityksellisesti"},{"$f":"'KOMMUNIKOINNIN PERUSTAN TAIDOT'!B93","v":"2. Vaihtelee äänensävyä, korkeutta ja voimakkuutta enemmän."},"",0,0]
[{"$f":"'KOMMUNIKOINNIN PERUSTAN TAIDOT'!$B$1","v":"1. Kommunikoinnin perustan taidot"},{"$f":"'KOMMUNIKOINNIN PERUSTAN TAIDOT'!$B$91","v":"1.12. Käyttää ja ymmärtää ääntelyä, sanoja ja puhetta merkityksellisesti"},{"$f":"'KOMMUNIKOINNIN PERUSTAN TAIDOT'!B94","v":"3. Ääntelee uusilla tavoilla, tuottaa uusia äänteitä, tavuja tai sanoja."},"",0,0]
[{"$f":"'KOMMUNIKOINNIN PERUSTAN TAIDOT'!$B$1","v":"1. Kommunikoinnin perustan taidot"},{"$f":"'KOMMUNIKOINNIN PERUSTAN TAIDOT'!$B$91","v":"1.12. Käyttää ja ymmärtää ääntelyä, sanoja ja puhetta merkityksellisesti"},{"$f":"'KOMMUNIKOINNIN PERUSTAN TAIDOT'!B95","v":"4. Käyttää ääntelyään, puhettaan tai sanojaan tietoisemmin erilaisiin tarkoituksiin (esim. kutsuu, kertoo, käskee…)."},"",0,0]
[{"$f":"'KOMMUNIKOINNIN PERUSTAN TAIDOT'!$B$1","v":"1. Kommunikoinnin perustan taidot"},{"$f":"'KOMMUNIKOINNIN PERUSTAN TAIDOT'!$B$91","v":"1.12. Käyttää ja ymmärtää ääntelyä, sanoja ja puhetta merkityksellisesti"},{"$f":"'KOMMUNIKOINNIN PERUSTAN TAIDOT'!B96","v":"5. Jäljittelee muiden ääntelyä, sanoja tai puhetta vuorovaikutteisemmin."},"",0,0]
[{"$f":"'KOMMUNIKOINNIN PERUSTAN TAIDOT'!$B$1","v":"1. Kommunikoinnin perustan taidot"},{"$f":"'KOMMUNIKOINNIN PERUSTAN TAIDOT'!$B$91","v":"1.12. Käyttää ja ymmärtää ääntelyä, sanoja ja puhetta merkityksellisesti"},{"$f":"'KOMMUNIKOINNIN PERUSTAN TAIDOT'!B97","v":"6. Reagoi ja vastaa herkemmin toisten puheeseen."},"",0,0]
[{"$f":"'KOMMUNIKOINNIN PERUSTAN TAIDOT'!$B$1","v":"1. Kommunikoinnin perustan taidot"},{"$f":"'KOMMUNIKOINNIN PERUSTAN TAIDOT'!$B$91","v":"1.12. Käyttää ja ymmärtää ääntelyä, sanoja ja puhetta merkityksellisesti"},{"$f":"'KOMMUNIKOINNIN PERUSTAN TAIDOT'!B98","v":"7. Ymmärtää paremmin puhetta (esim. noudattaa kehotuksia, tunnistaa nimensä ja tuttuja ilmauksia)."},"",0,0]
[{"$f":"'KOMMUNIKOINNIN PERUSTAN TAIDOT'!$B$1","v":"1. Kommunikoinnin perustan taidot"},{"$f":"'KOMMUNIKOINNIN PERUSTAN TAIDOT'!$B$101","v":"1.13. Käyttää ja ymmärtää kommunikoinnin tukikeinoja (AAC) merkityksellisesti"},{"$f":"'KOMMUNIKOINNIN PERUSTAN TAIDOT'!B102","v":"1. Käyttää kommunikoinnin tukikeinojaan useammin (viittomat, kuvat, kirjoitus, kommunikoinnin apuvälineet)."},"",0,0]
[{"$f":"'KOMMUNIKOINNIN PERUSTAN TAIDOT'!$B$1","v":"1. Kommunikoinnin perustan taidot"},{"$f":"'KOMMUNIKOINNIN PERUSTAN TAIDOT'!$B$101","v":"1.13. Käyttää ja ymmärtää kommunikoinnin tukikeinoja (AAC) merkityksellisesti"},{"$f":"'KOMMUNIKOINNIN PERUSTAN TAIDOT'!B103","v":"2. Viestii kommunikoinnin tukikeinoilla monipuolisemmin."},"",0,0]
[{"$f":"'KOMMUNIKOINNIN PERUSTAN TAIDOT'!$B$1","v":"1. Kommunikoinnin perustan taidot"},{"$f":"'KOMMUNIKOINNIN PERUSTAN TAIDOT'!$B$101","v":"1.13. Käyttää ja ymmärtää kommunikoinnin tukikeinoja (AAC) merkityksellisesti"},{"$f":"'KOMMUNIKOINNIN PERUSTAN TAIDOT'!B104","v":"3. Käyttää kommunikoinnin tukikeinoja tietoisemmin erilaisiin tarkoituksiin (esim. kutsuu, kertoo, käskee…)."},"",{"$f":"F66/4","v":0},0]
[{"$f":"'KOMMUNIKOINNIN PERUSTAN TAIDOT'!$B$1","v":"1. Kommunikoinnin perustan taidot"},{"$f":"'KOMMUNIKOINNIN PERUSTAN TAIDOT'!$B$101","v":"1.13. Käyttää ja ymmärtää kommunikoinnin tukikeinoja (AAC) merkityksellisesti"},{"$f":"'KOMMUNIKOINNIN PERUSTAN TAIDOT'!B105","v":"4. Käyttää kommunikoinnin tukikeinojaan vuorovaikutteisemmin."},{"$f":"IF(E67=0,\"\",IF(E67=0.25,\"Ei muutosta\",IF(E67=0.5,\"Muuttunut vähän\",IF(E67=0.75,\"Muuttunut\",IF(E67=1,\"Muuttunut paljon\")))))","v":""},0,0]
[{"$f":"'KOMMUNIKOINNIN PERUSTAN TAIDOT'!$B$1","v":"1. Kommunikoinnin perustan taidot"},{"$f":"'KOMMUNIKOINNIN PERUSTAN TAIDOT'!$B$101","v":"1.13. Käyttää ja ymmärtää kommunikoinnin tukikeinoja (AAC) merkityksellisesti"},{"$f":"'KOMMUNIKOINNIN PERUSTAN TAIDOT'!B106","v":"5. Jäljittelee enemmän sitä, kun toinen mallittaa kommunikoinnin tukikeinoja (esim. viittoo perässä, osoittaa kansiosta kuvia mallista…)."},"",0,0]
[{"$f":"'KOMMUNIKOINNIN PERUSTAN TAIDOT'!$B$1","v":"1. Kommunikoinnin perustan taidot"},{"$f":"'KOMMUNIKOINNIN PERUSTAN TAIDOT'!$B$101","v":"1.13. Käyttää ja ymmärtää kommunikoinnin tukikeinoja (AAC) merkityksellisesti"},{"$f":"'KOMMUNIKOINNIN PERUSTAN TAIDOT'!B107","v":"6. Reagoi ja vastaa herkemmin, kun toiset käyttävät kommunikoinnin tukikeinoja."},"",0,0]
[{"$f":"TUNNETAIDOT!$B$1","v":"2. Tunnetaidot"},{"$f":"TUNNETAIDOT!$B$3","v":"2.01. Osoittaa kiintymistä, \nliittyy ja sitoutuu"},{"$f":"TUNNETAIDOT!B4","v":"1. On tunnetasolla voimakkaammin yhteydessä toiseen vuorovaikutuksen aikana."},"",0,0]
[{"$f":"TUNNETAIDOT!$B$1","v":"2. Tunnetaidot"},{"$f":"TUNNETAIDOT!$B$3","v":"2.01. Osoittaa kiintymistä, \nliittyy ja sitoutuu"},{"$f":"TUNNETAIDOT!B5","v":"2. Osoittaa enemmän pitävänsä toisesta."},"",0,0]
[{"$f":"TUNNETAIDOT!$B$1","v":"2. Tunnetaidot"},{"$f":"TUNNETAIDOT!$B$3","v":"2.01. Osoittaa kiintymistä, \nliittyy ja sitoutuu"},{"$f":"TUNNETAIDOT!B6","v":"3. Osoittaa enemmän pitävänsä tietyistä ihmisistä."},"",0,0]
[{"$f":"TUNNETAIDOT!$B$1","v":"2. Tunnetaidot"},{"$f":"TUNNETAIDOT!$B$9","v":"2.02. Tuntee, että toiset välittävät, ja luottaa toisiin ihmisiin"},{"$f":"TUNNETAIDOT!B10","v":"1. Hakee aiempaa enemmän muiden läheisyyttä."},"",0,0]
[{"$f":"TUNNETAIDOT!$B$1","v":"2. Tunnetaidot"},{"$f":"TUNNETAIDOT!$B$9","v":"2.02. Tuntee, että toiset välittävät, ja luottaa toisiin ihmisiin"},{"$f":"TUNNETAIDOT!B11","v":"2. Osaa paremmin hakea lohdutusta, kun tarvitsee sitä."},"",0,0]
[{"$f":"TUNNETAIDOT!$B$1","v":"2. Tunnetaidot"},{"$f":"TUNNETAIDOT!$B$9","v":"2.02. Tuntee, että toiset välittävät, ja luottaa toisiin ihmisiin"},{"$f":"TUNNETAIDOT!B12","v":"3. Pyytää useammin apua."},"",0,0]
[{"$f":"TUNNETAIDOT!$B$1","v":"2. Tunnetaidot"},{"$f":"TUNNETAIDOT!$B$15","v":"2.03. Ilmaisee tunteita ja tunnistaa toisten mielialoja"},{"$f":"TUNNETAIDOT!B16","v":"1. Ilmaisee käyttäytymisellään itseään tai mielialojaan enemmän."},"",0,0]
[{"$f":"TUNNETAIDOT!$B$1","v":"2. Tunnetaidot"},{"$f":"TUNNETAIDOT!$B$15","v":"2.03. Ilmaisee tunteita ja tunnistaa toisten mielialoja"},{"$f":"TUNNETAIDOT!B17","v":"2. Ilmaisee monipuolisemmin erilaisia tunteita."},"",0,0]
[{"$f":"TUNNETAIDOT!$B$1","v":"2. Tunnetaidot"},{"$f":"TUNNETAIDOT!$B$15","v":"2.03. Ilmaisee tunteita ja tunnistaa toisten mielialoja"},{"$f":"TUNNETAIDOT!B18","v":"3. Näyttää monipuolisemmin tunteitaan kasvojen ilmeillä."},"",0,0]
[{"$f":"TUNNETAIDOT!$B$1","v":"2. Tunnetaidot"},{"$f":"TUNNETAIDOT!$B$15","v":"2.03. Ilmaisee tunteita ja tunnistaa toisten mielialoja"},{"$f":"TUNNETAIDOT!B19","v":"4. Havainnoi enemmän kumppaninsa tunneilmauksia."},"",0,0]
[{"$f":"TUNNETAIDOT!$B$1","v":"2. Tunnetaidot"},{"$f":"TUNNETAIDOT!$B$15","v":"2.03. Ilmaisee tunteita ja tunnistaa toisten mielialoja"},{"$f":"TUNNETAIDOT!B20","v":"5. Kykenee tulkitsemaan toisen mielialoja herkemmin ja virittymään niihin."},"",0,0]
[{"$f":"TUNNETAIDOT!$B$1","v":"2. Tunnetaidot"},{"$f":"TUNNETAIDOT!$B$23","v":"2.04. On empaattinen, välittää miltä toisesta ihmisestä tuntuu."},{"$f":"TUNNETAIDOT!B24","v":"1. Liittyy useammin mukaan toisen tunteisiin (esim. liittyy toisen iloon, suruun)."},"",0,0]
[{"$f":"TUNNETAIDOT!$B$1","v":"2. Tunnetaidot"},{"$f":"TUNNETAIDOT!$B$23","v":"2.04. On empaattinen, välittää miltä toisesta ihmisestä tuntuu."},{"$f":"TUNNETAIDOT!B25","v":"2. Ottaa herkemmin toisen tunteet huomioon."},"",0,0]
[{"$f":"TUNNETAIDOT!$B$1","v":"2. Tunnetaidot"},{"$f":"TUNNETAIDOT!$B$23","v":"2.04. On empaattinen, välittää miltä toisesta ihmisestä tuntuu."},{"$f":"TUNNETAIDOT!B26","v":"3. Osaa useammin lohduttaa, rauhoittaa tai innostaa toista tilanteen vaatimalla tavalla."},"",0,0]
[{"$f":"TUNNETAIDOT!$B$1","v":"2. Tunnetaidot"},{"$f":"TUNNETAIDOT!$B$29","v":"2.05. Tuntee olonsa turvalliseksi, varmaksi ja rauhalliseksi"},{"$f":"TUNNETAIDOT!B30","v":"1. Näyttää onnellisemmalta, tyytyväisemmältä."},"",0,0]
[{"$f":"TUNNETAIDOT!$B$1","v":"2. Tunnetaidot"},{"$f":"TUNNETAIDOT!$B$29","v":"2.05. Tuntee olonsa turvalliseksi, varmaksi ja rauhalliseksi"},{"$f":"TUNNETAIDOT!B31","v":"2. On rauhallisempi."},"",0,0]
[{"$f":"TUNNETAIDOT!$B$1","v":"2. Tunnetaidot"},{"$f":"TUNNETAIDOT!$B$29","v":"2.05. Tuntee olonsa turvalliseksi, varmaksi ja rauhalliseksi"},{"$f":"TUNNETAIDOT!B32","v":"3. On vähemmän ahdistunut tai aggressiivinen."},"",0,0]
[{"$f":"TUNNETAIDOT!$B$1","v":"2. Tunnetaidot"},{"$f":"TUNNETAIDOT!$B$29","v":"2.05. Tuntee olonsa turvalliseksi, varmaksi ja rauhalliseksi"},{"$f":"TUNNETAIDOT!B33","v":"4. Levotonta toistavaa, stereotyyppistä käyttäytymistä on vähemmän."},"",0,0]
[{"$f":"TUNNETAIDOT!$B$1","v":"2. Tunnetaidot"},{"$f":"TUNNETAIDOT!$B$29","v":"2.05. Tuntee olonsa turvalliseksi, varmaksi ja rauhalliseksi"},{"$f":"TUNNETAIDOT!B34","v":"5. Tutkii enemmän ympäristöään."},"",0,0]
[{"$f":"TUNNETAIDOT!$B$1","v":"2. Tunnetaidot"},{"$f":"TUNNETAIDOT!$B$37","v":"2.06. Itsetuntemus "},{"$f":"TUNNETAIDOT!B38","v":"1. On tietoisempi itsestään (tietää kuka on ja mitä haluaa)."},"",0,0]
[{"$f":"TUNNETAIDOT!$B$1","v":"2. Tunnetaidot"},{"$f":"TUNNETAIDOT!$B$37","v":"2.06. Itsetuntemus "},{"$f":"TUNNETAIDOT!B39","v":"2. On kiinnostuneempi itsestään."},"",0,0]
[{"$f":"TUNNETAIDOT!$B$1","v":"2. Tunnetaidot"},{"$f":"TUNNETAIDOT!$B$37","v":"2.06. Itsetuntemus "},{"$f":"TUNNETAIDOT!B40","v":"3. Ilmaisee paremmin mieltymyksiään, toiveitaan ja tarpeitaan (esim. mistä pitää ja ei pidä)."},"",0,0]
[{"$f":"TUNNETAIDOT!$B$1","v":"2. Tunnetaidot"},{"$f":"TUNNETAIDOT!$B$37","v":"2.06. Itsetuntemus "},{"$f":"TUNNETAIDOT!B41","v":"4. Ilmaisee enemmän persoonallisuuttaan."},"",0,0]
[{"$f":"TUNNETAIDOT!$B$1","v":"2. Tunnetaidot"},{"$f":"TUNNETAIDOT!$B$44","v":"2.07. Itsetunto "},{"$f":"TUNNETAIDOT!B45","v":"1. Luottaa enemmän itseensä."},"",0,0]
[{"$f":"TUNNETAIDOT!$B$1","v":"2. Tunnetaidot"},{"$f":"TUNNETAIDOT!$B$44","v":"2.07. Itsetunto "},{"$f":"TUNNETAIDOT!B46","v":"2. On sinnikkäämpi."},"",0,0]
[{"$f":"TUNNETAIDOT!$B$1","v":"2. Tunnetaidot"},{"$f":"TUNNETAIDOT!$B$44","v":"2.07. Itsetunto "},{"$f":"TUNNETAIDOT!B47","v":"3. Suhtautuu itseensä myönteisemmin."},"",0,0]
[{"$f":"TUNNETAIDOT!$B$1","v":"2. Tunnetaidot"},{"$f":"TUNNETAIDOT!$B$44","v":"2.07. Itsetunto "},{"$f":"TUNNETAIDOT!B48","v":"4. On rohkeampi, yrittää enemmän itse."},"",0,0]
[{"$f":"'MUUT TAIDOT'!$B$1","v":"3. Muut taidot"},{"$f":"'MUUT TAIDOT'!$B$3","v":"3.01. Muita muutoksia"},{"$f":"'MUUT TAIDOT'!B4","v":"1. On virkeämpi"},"",0,0]
[{"$f":"'MUUT TAIDOT'!$B$1","v":"3. Muut taidot"},{"$f":"'MUUT TAIDOT'!$B$3","v":"3.01. Muita muutoksia"},{"$f":"'MUUT TAIDOT'!B5","v":"2. Asento on parantunut."},"",{"$f":"F98/4","v":0},0]
[{"$f":"'MUUT TAIDOT'!$B$1","v":"3. Muut taidot"},{"$f":"'MUUT TAIDOT'!$B$3","v":"3.01. Muita muutoksia"},{"$f":"'MUUT TAIDOT'!$B$6","v":"3. Fyysinen aktiivisuus on lisääntynyt,\nliikkuu enemmän."},"",0,0]
[{"$f":"'MUUT TAIDOT'!$B$1","v":"3. Muut taidot"},{"$f":"'MUUT TAIDOT'!$B$3","v":"3.01. Muita muutoksia"},{"$f":"'MUUT TAIDOT'!$B$7","v":"4. On tyytyväisemmän oloinen."},"",0,0]
[{"$f":"'MUUT TAIDOT'!$B$1","v":"3. Muut taidot"},{"$f":"'MUUT TAIDOT'!$B$3","v":"3.01. Muita muutoksia"},{"$f":"'MUUT TAIDOT'!$B$8","v":"5. Haastava käyttäytyminen on\n vähentynyt."},"",0,0]
[{"$f":"'MUUT TAIDOT'!$B$1","v":"3. Muut taidot"},{"$f":"'MUUT TAIDOT'!$B$3","v":"3.01. Muita muutoksia"},{"$f":"'MUUT TAIDOT'!$B$9","v":"6. Viettää vähemmän aikaa \nitsestimuloivassa toiminnassa."},{"$f":"IF(E102=0,\"\",IF(E102=0.25,\"Ei muutosta\",IF(E102=0.5,\"Muuttunut vähän\",IF(E102=0.75,\"Muuttunut\",IF(E102=1,\"Muuttunut paljon\")))))","v":""},{"$f":"F102/4","v":0},0]
[{"$f":"'MUUT TAIDOT'!$B$1","v":"3. Muut taidot"},{"$f":"'MUUT TAIDOT'!$B$3","v":"3.01. Muita muutoksia"},{"$f":"'MUUT TAIDOT'!$B$10","v":"7. Sietää paremmin ääni-, näkö-,\nkosketus-, haju- ja liikeärsykkeitä."},"",0,0]

{"sheet":"Yhteenveto","index":5,"n_rows":1,"n_cols":23,"rows_kept":1,"cut":false,"hidden":false,"merged":[]}
[null,{"$f":"'KOMMUNIKOINNIN PERUSTAN TAIDOT'!B1","v":"1. Kommunikoinnin perustan taidot"},null,null,null,null,null,null,null,null,null,null,{"$f":"TUNNETAIDOT!B1","v":"2. Tunnetaidot"},null,null,null,null,null,null,null,null,null,{"$f":"'MUUT TAIDOT'!B1","v":"3. Muut taidot"}]

{"sheet":"Ryhmittely","index":6,"n_rows":129,"n_cols":2,"rows_kept":129,"cut":false,"hidden":false,"merged":[]}
[]
[]
["Muutoksen suuruus","Arvo"]
["1. Kommunikoinnin perustan taidot"]
["1.01. Nauttii yhdessäolosta "]
["1. Ilme on myönteisempi vuorovaikutuksessa muiden kanssa.",0]
["2. Olemus on rennompi.",0]
["3. On vuorovaikutuksessa pidempään.",0]
["4. On vuorovaikutuksessa useammin.",0]
["5. On vuorovaikutuksessa useampien ihmisten kanssa.",0]
["1.02. Hakeutuu lähemmäs toista ja antaa toisen olla lähellä"]
["1. Hakeutuu useammin toisen lähelle.",0]
["2. Nauttii ja on rennompi lähikontaktissa.",0]
["3. Antaa toisen tulla lähelle useammin.",0]
["1.03. Suuntaa huomionsa toiseen ihmiseen"]
["1. On kiinnostuneempi ja tietoisempi muista ihmisistä.",0]
["2. Katsoo ja katselee tai kuuntelee enemmän muita ihmisiä.",0]
["3. Kääntyy tai nojautuu useammin kohti toista ihmistä.",0]
["4. Reagoi herkemmin, jos toisen huomio siirtyy muualle.",0]
["1.04. Keskittyy ja on tarkkaavainen"]
["1. Keskittyy ja malttaa olla paikallaan pidempään.",0]
["2. Suuntaa huomionsa tarkkaavaisemmin toiseen ihmiseen, toimintaan tai tehtävään.",0]
["3. Vaihtaa huomion kohdetta helpommin.",0]
["4. Sopeutuu paremmin rutiinien muutoksiin.",0]
["5. Sietää paremmin keskeytyksiä.",0]
["1.05. Toimii yhdessä"]
["1. On aloitteellisempi.",0]
["2. Saa enemmän mielihyvää yhteisestä toiminnasta.",0]
["3. Puuhailee yhdessä muiden kanssa useammin.",0]
["4. Pyytää useammin lisää toimintaa.",0]
["5. Toimii tai leikkii uusilla tai monipuolisemmilla tavoilla toisten kanssa.",0]
["6. Ilmaisee selkeämmin halunsa lopettaa yhdessäolon.",0]
["7. Mukautuu paremmin toisen ehdotuksiin (esim. ottaa toisen mukaan omaan leikkiinsä, antaa hänen vaikuttaa leikin sisältöön).",0]
["1.06. Vuorottelee eli ottaa ja antaa vuoroja"]
["1. Vuorottelee pidempään.",0]
["2. Vuorottelee monipuolisemmilla tavoilla (esim. käyttäen kehon liikettä, ilmeitä, kosketusta, toimintaa tai ääntelyä).",0]
["3. Osaa paremmin odottaa tai sallii toisen ottaa vuoronsa.",0]
["4. Osaa tietoisemmin antaa vuoron myös toiselle (esim. pitää tauon ja odottaa toisen vastausta, vuoroa tai osallistumista).",0]
["5. Vuorotteluun on tullut enemmän tasavertaisuutta ja se alkaa muistuttaa keskustelua (esim. molemmat voivat toimia joustavasti aloitteen tekijöinä ja vastaajina).",0]
["1.07. Säätelee ja kontrolloi omaa aktiivisuustasoaan ja tunteitaan"]
["1. Yliaktiivisuutta on vähemmän.",0]
["2. Passiivisuus on vähentynyt.",0]
["3. Tunteet heittelevät vähemmän äärilaidasta toiseen.",0]
["4. Toipuu helpommin tunteita herättävästä tilanteesta.",0]
["5. Pyytää tai antaa toisen paremmin auttaa tunteiden ja toiminnan säätelyssä.",0]
["6. Osaa paremmin säädellä itse omaa aktiivisuustasoaan ja tunteitaan.",0]
["7. Osaa ottaa paremmin tauon vuorovaikutuksessa tai toiminnassa, kun tarvitsee sitä.",0]
["1.08. Käyttää ja ymmärtää katsekontaktia ja katsetta"]
["1. Ottaa useammin katsekontaktin tai on katsekontaktissa pidempään.",0]
["2. Katsekontakti on vivahteikkaampaa ja välittää enemmän hänen ajatuksiaan ja tunteitaan.",0]
["3. Reagoi ja vastaa herkemmin ja useammin toisen katseeseen.",0]
["4. On kiinnostuneempi katsomaan samaa, mitä toinen ihminen katsoo.",0]
["5. Katsoo useammin toista ihmistä halutessaan jakaa kokemuksen.",0]
["1.09. Käyttää ja ymmärtää ilmeitä"]
["1. Käyttää monipuolisemmin ilmeitä ja ilmeet ovat vivahteikkaampia.",0]
["2. Jäljittelee enemmän muiden ilmeitä.",0]
["3. Reagoi ja vastaa enemmän muiden ilmeisiin.",0]
["4. Vastaa ilmeisiin useammin tilanteeseen sopivasti.",0]
["1.10. Käyttää ja ymmärtää fyysistä kontaktia"]
["1. Hakee enemmän ja aloitteellisemmin myönteistä fyysistä kontaktia.",0]
["2. Käyttää fyysistä kontaktia tilanteeseen sopivammin.",0]
["3. Reagoi myönteisemmin kosketukseen, sietää kosketusta paremmin.",0]
["4. Osaa paremmin mukauttaa tapansa olla fyysisessä kontaktissa tilanteen tai kumppaninsa mukaan.",0]
["1.11. Käyttää ja ymmärtää olemuskieltä ja muuta sanatonta viestintää"]
["1. Ilmaisee toiminnallaan asioita monipuolisemmin tai useammin.",0]
["2. Ilmaisee olemuskielellään enemmän tai monipuolisemmin.",0]
["3. Käyttää eleitä enemmän tai monipuolisemmin.",0]
["4. Jäljittelee enemmän toisten toimintaa ja eleitä.",0]
["5. Reagoi herkemmin muiden sanattomaan viestintään.",0]
["6. Vastaa herkemmin muiden olemuskieleen, toimintaan ja eleisiin.",0]
["1.12. Käyttää ja ymmärtää ääntelyä, sanoja ja puhetta merkityksellisesti"]
["1. Ääntelee useammin.",0]
["2. Vaihtelee äänensävyä, korkeutta ja voimakkuutta enemmän.",0]
["3. Ääntelee uusilla tavoilla, tuottaa uusia äänteitä, tavuja tai sanoja.",0]
["4. Käyttää ääntelyään, puhettaan tai sanojaan tietoisemmin erilaisiin tarkoituksiin (esim. kutsuu, kertoo, käskee…).",0]
["5. Jäljittelee muiden ääntelyä, sanoja tai puhetta vuorovaikutteisemmin.",0]
["6. Reagoi ja vastaa herkemmin toisten puheeseen.",0]
["7. Ymmärtää paremmin puhetta (esim. noudattaa kehotuksia, tunnistaa nimensä ja tuttuja ilmauksia).",0]
["1.13. Käyttää ja ymmärtää kommunikoinnin tukikeinoja (AAC) merkityksellisesti"]
["1. Käyttää kommunikoinnin tukikeinojaan useammin (viittomat, kuvat, kirjoitus, kommunikoinnin apuvälineet).",0]
["2. Viestii kommunikoinnin tukikeinoilla monipuolisemmin.",0]
["3. Käyttää kommunikoinnin tukikeinoja tietoisemmin erilaisiin tarkoituksiin (esim. kutsuu, kertoo, käskee…).",0]
["4. Käyttää kommunikoinnin tukikeinojaan vuorovaikutteisemmin.",0]
["5. Jäljittelee enemmän sitä, kun toinen mallittaa kommunikoinnin tukikeinoja (esim. viittoo perässä, osoittaa kansiosta kuvia mallista…).",0]
["6. Reagoi ja vastaa herkemmin, kun toiset käyttävät kommunikoinnin tukikeinoja.",0]
["2. Tunnetaidot"]
["2.01. Osoittaa kiintymistä, \nliittyy ja sitoutuu"]
["1. On tunnetasolla voimakkaammin yhteydessä toiseen vuorovaikutuksen aikana.",0]
["2. Osoittaa enemmän pitävänsä toisesta.",0]
["3. Osoittaa enemmän pitävänsä tietyistä ihmisistä.",0]
["2.02. Tuntee, että toiset välittävät, ja luottaa toisiin ihmisiin"]
["1. Hakee aiempaa enemmän muiden läheisyyttä.",0]
["2. Osaa paremmin hakea lohdutusta, kun tarvitsee sitä.",0]
["3. Pyytää useammin apua.",0]
["2.03. Ilmaisee tunteita ja tunnistaa toisten mielialoja"]
["1. Ilmaisee käyttäytymisellään itseään tai mielialojaan enemmän.",0]
["2. Ilmaisee monipuolisemmin erilaisia tunteita.",0]
["3. Näyttää monipuolisemmin tunteitaan kasvojen ilmeillä.",0]
["4. Havainnoi enemmän kumppaninsa tunneilmauksia.",0]
["5. Kykenee tulkitsemaan toisen mielialoja herkemmin ja virittymään niihin.",0]
["2.04. On empaattinen, välittää miltä toisesta ihmisestä tuntuu."]
["1. Liittyy useammin mukaan toisen tunteisiin (esim. liittyy toisen iloon, suruun).",0]
["2. Ottaa herkemmin toisen tunteet huomioon.",0]
["3. Osaa useammin lohduttaa, rauhoittaa tai innostaa toista tilanteen vaatimalla tavalla.",0]
["2.05. Tuntee olonsa turvalliseksi, varmaksi ja rauhalliseksi"]
["1. Näyttää onnellisemmalta, tyytyväisemmältä.",0]
["2. On rauhallisempi.",0]
["3. On vähemmän ahdistunut tai aggressiivinen.",0]
["4. Levotonta toistavaa, stereotyyppistä käyttäytymistä on vähemmän.",0]
["5. Tutkii enemmän ympäristöään.",0]
["2.06. Itsetuntemus "]
["1. On tietoisempi itsestään (tietää kuka on ja mitä haluaa).",0]
["2. On kiinnostuneempi itsestään.",0]
["3. Ilmaisee paremmin mieltymyksiään, toiveitaan ja tarpeitaan (esim. mistä pitää ja ei pidä).",0]
["4. Ilmaisee enemmän persoonallisuuttaan.",0]
["2.07. Itsetunto "]
["1. Luottaa enemmän itseensä.",0]
["2. On sinnikkäämpi.",0]
["3. Suhtautuu itseensä myönteisemmin.",0]
["4. On rohkeampi, yrittää enemmän itse.",0]
["3. Muut taidot"]
["3.01. Muita muutoksia"]
["1. On virkeämpi",0]
["2. Asento on parantunut.",0]
["3. Fyysinen aktiivisuus on lisääntynyt,\nliikkuu enemmän.",0]
["4. On tyytyväisemmän oloinen.",0]
["5. Haastava käyttäytyminen on\n vähentynyt.",0]
["6. Viettää vähemmän aikaa \nitsestimuloivassa toiminnassa.",0]
["7. Sietää paremmin ääni-, näkö-,\nkosketus-, haju- ja liikeärsykkeitä.",0]